[Event "Titled Tuesday Blitz March 08 Early 2022"]
[White "Coto Mederos, Michel"]
[Black "Bulmaga, Irina"]
[WhiteFideId "3508528"]
[BlackFideId "13903063"]
[WhiteElo "2427"]
[BlackElo "2184"]
[Result "1-0"]
[Round "08"]
[TimeControl "180+1"]
[Date "2022.03.09"]
[WhiteClock "0:00:04"]
[BlackClock "0:00:17"]

1. d4 {[%clk 0:02:47]}  Nf6 {[%clk 0:02:58]} 2. c4 {[%clk 0:02:47]}  g6 {[%clk 0:02:58]} 3. Nc3 {[%clk 0:02:47]}  d6 {[%clk 0:02:58]} 4. e4 {[%clk 0:02:47]}  Bg7 {[%clk 0:02:59]} 5. f3 {[%clk 0:02:48]}  O-O {[%clk 0:02:59]} 6. Be3 {[%clk 0:02:48]}  c5 {[%clk 0:02:59]} 7. Nge2 {[%clk 0:02:48]}  Nc6 {[%clk 0:02:57]} 8. Qd2 {[%clk 0:02:47]}  cxd4 {[%clk 0:02:54]} 9. Nxd4 {[%clk 0:02:46]}  Nxd4 {[%clk 0:02:51]} 10. Bxd4 {[%clk 0:02:47]}  Be6 {[%clk 0:02:50]} 11. Be2 {[%clk 0:02:40]}  Rc8 {[%clk 0:02:49]} 12. b3 {[%clk 0:02:26]}  Nh5 {[%clk 0:02:37]} 13. Bxg7 {[%clk 0:02:19]}  Nxg7 {[%clk 0:02:37]} 14. O-O {[%clk 0:02:16]}  f5 {[%clk 0:02:37]} 15. Bd3 {[%clk 0:02:04]}  a6 {[%clk 0:02:35]} 16. Rae1 {[%clk 0:02:01]}  Qb6+ {[%clk 0:02:33]} 17. Kh1 {[%clk 0:02:01]}  Qd4 {[%clk 0:02:28]} 18. Re2 {[%clk 0:01:50]}  b5 {[%clk 0:02:24]} 19. exf5 {[%clk 0:01:31]}  bxc4 {[%clk 0:02:24]} 20. Bxc4 {[%clk 0:01:14]}  Qxd2 {[%clk 0:02:24]} 21. Bxe6+ {[%clk 0:01:14]}  Nxe6 {[%clk 0:02:23]} 22. Rxd2 {[%clk 0:01:14]}  gxf5 {[%clk 0:02:22]} 23. Nd5 {[%clk 0:01:14]}  Rf7 {[%clk 0:02:15]} 24. Re1 {[%clk 0:00:50]}  Nf8 {[%clk 0:02:11]} 25. h3 {[%clk 0:00:45]}  e6 {[%clk 0:02:10]} 26. Nb6 {[%clk 0:00:45]}  Rc6 {[%clk 0:02:07]} 27. Nc4 {[%clk 0:00:45]}  Rd7 {[%clk 0:02:01]} 28. Red1 {[%clk 0:00:36]}  Rd8 {[%clk 0:01:51]} 29. Rxd6 {[%clk 0:00:33]}  Rdxd6 {[%clk 0:01:49]} 30. Rxd6 {[%clk 0:00:34]}  Rxd6 {[%clk 0:01:47]} 31. Nxd6 {[%clk 0:00:35]}  Nd7 {[%clk 0:01:44]} 32. b4 {[%clk 0:00:32]}  Kf8 {[%clk 0:01:44]} 33. Kg1 {[%clk 0:00:28]}  Ke7 {[%clk 0:01:44]} 34. Nc4 {[%clk 0:00:27]}  e5 {[%clk 0:01:44]} 35. a4 {[%clk 0:00:20]}  Ke6 {[%clk 0:01:44]} 36. b5 {[%clk 0:00:21]}  axb5 {[%clk 0:01:44]} 37. axb5 {[%clk 0:00:22]}  Kd5 {[%clk 0:01:44]} 38. Ne3+ {[%clk 0:00:22]}  Ke6 {[%clk 0:01:42]} 39. Kf2 {[%clk 0:00:22]}  f4 {[%clk 0:01:42]} 40. Ng4 {[%clk 0:00:15]}  Kd5 {[%clk 0:01:41]} 41. Ke2 {[%clk 0:00:15]}  h5 {[%clk 0:01:33]} 42. Nf2 {[%clk 0:00:14]}  Kc4 {[%clk 0:01:31]} 43. h4 {[%clk 0:00:05]}  Kxb5 {[%clk 0:01:27]} 44. Kd3 {[%clk 0:00:05]}  Nc5+ {[%clk 0:01:26]} 45. Kc3 {[%clk 0:00:05]}  Na4+ {[%clk 0:01:08]} 46. Kd3 {[%clk 0:00:05]}  Kc5 {[%clk 0:00:59]} 47. Ke4 {[%clk 0:00:05]}  Kd6 {[%clk 0:01:00]} 48. Kf5 {[%clk 0:00:05]}  Kd5 {[%clk 0:00:57]} 49. Kg5 {[%clk 0:00:05]}  Ke6 {[%clk 0:00:53]} 50. Kxh5 {[%clk 0:00:05]}  Kf5 {[%clk 0:00:54]} 51. Kh6 {[%clk 0:00:05]}  Nc3 {[%clk 0:00:48]} 52. h5 {[%clk 0:00:05]}  Nd5 {[%clk 0:00:47]} 53. Kg7 {[%clk 0:00:05]}  Nf6 {[%clk 0:00:45]} 54. h6 {[%clk 0:00:05]}  Nh5+ {[%clk 0:00:42]} 55. Kf7 {[%clk 0:00:05]}  Nf6 {[%clk 0:00:42]} 56. Ne4 {[%clk 0:00:06]}  Nxe4 {[%clk 0:00:19]} 57. fxe4+ {[%clk 0:00:06]}  Kxe4 {[%clk 0:00:13]} 58. h7 {[%clk 0:00:07]}  f3 {[%clk 0:00:13]} 59. gxf3+ {[%clk 0:00:06]}  Kxf3 {[%clk 0:00:14]} 60. h8=Q {[%clk 0:00:07]}  e4 {[%clk 0:00:15]} 61. Qh5+ {[%clk 0:00:06]}  Kf2 {[%clk 0:00:13]} 62. Qf5+ {[%clk 0:00:06]}  Ke3 {[%clk 0:00:14]} 63. Ke6 {[%clk 0:00:06]}  Kd4 {[%clk 0:00:15]} 64. Qf4 {[%clk 0:00:06]}  Kd3 {[%clk 0:00:15]} 65. Qd6+ {[%clk 0:00:05]}  Kc2 {[%clk 0:00:13]} 66. Qe5 {[%clk 0:00:04]}  Kd3 {[%clk 0:00:13]} 67. Qd5+ {[%clk 0:00:05]}  Ke3 {[%clk 0:00:13]} 68. Ke5 {[%clk 0:00:06]}  Kf2 {[%clk 0:00:14]} 69. Qxe4 {[%clk 0:00:06]}  Kg3 {[%clk 0:00:15]} 70. Qf4+ {[%clk 0:00:06]}  Kg2 {[%clk 0:00:15]} 71. Ke4 {[%clk 0:00:05]}  Kh1 {[%clk 0:00:16]} 72. Qg4 {[%clk 0:00:05]}  Kh2 {[%clk 0:00:16]} 73. Kf3 {[%clk 0:00:06]}  Kh1 {[%clk 0:00:17]} 74. Qg2# {[%clk 0:00:04]} 1-0


[Site "https://www.chess.com"]

[Event "Titled Tuesday Blitz March 08 Early 2022"]
[White "Decuigniere, Tom"]
[Black "Dilmukhametov, Artur"]
[WhiteFideId "26093820"]
[BlackFideId "24179922"]
[WhiteElo "1997"]
[BlackElo "2237"]
[Result "1-0"]
[Round "08"]
[TimeControl "180+1"]
[Date "2022.03.09"]
[WhiteClock "0:02:18"]
[BlackClock "0:00:43"]

1. c4 {[%clk 0:03:00]}  Nf6 {[%clk 0:02:52]} 2. Nc3 {[%clk 0:03:01]}  g6 {[%clk 0:02:50]} 3. e4 {[%clk 0:03:01]}  d6 {[%clk 0:02:48]} 4. d4 {[%clk 0:03:01]}  Bg7 {[%clk 0:02:48]} 5. Nf3 {[%clk 0:03:01]}  O-O {[%clk 0:02:48]} 6. Be2 {[%clk 0:03:00]}  e5 {[%clk 0:02:41]} 7. O-O {[%clk 0:03:00]}  Nbd7 {[%clk 0:02:41]} 8. Re1 {[%clk 0:02:58]}  Nh5 {[%clk 0:02:28]} 9. Bf1 {[%clk 0:02:52]}  f5 {[%clk 0:02:26]} 10. dxe5 {[%clk 0:02:48]}  dxe5 {[%clk 0:02:23]} 11. Bg5 {[%clk 0:02:45]}  Bf6 {[%clk 0:02:06]} 12. Bxf6 {[%clk 0:02:45]}  Qxf6 {[%clk 0:02:04]} 13. Nd5 {[%clk 0:02:43]}  Qc6 {[%clk 0:01:56]} 14. Ne7+ {[%clk 0:02:42]}  Kg7 {[%clk 0:01:38]} 15. Nxc6 {[%clk 0:02:43]}  bxc6 {[%clk 0:01:38]} 16. exf5 {[%clk 0:02:43]}  gxf5 {[%clk 0:01:36]} 17. Nxe5 {[%clk 0:02:43]}  Nxe5 {[%clk 0:01:36]} 18. Rxe5 {[%clk 0:02:43]}  Nf6 {[%clk 0:01:33]} 19. Re7+ {[%clk 0:02:43]}  Kh8 {[%clk 0:01:32]} 20. Qa4 {[%clk 0:02:36]}  Bd7 {[%clk 0:01:25]} 21. Rd1 {[%clk 0:02:32]}  Rfd8 {[%clk 0:01:21]} 22. Rf7 {[%clk 0:02:28]}  c5 {[%clk 0:01:07]} 23. Rdxd7 {[%clk 0:02:25]}  Nxd7 {[%clk 0:01:06]} 24. Rxd7 {[%clk 0:02:26]}  Rxd7 {[%clk 0:01:03]} 25. Qxd7 {[%clk 0:02:27]}  Rg8 {[%clk 0:01:01]} 26. h4 {[%clk 0:02:26]}  f4 {[%clk 0:01:02]} 27. Bd3 {[%clk 0:02:24]}  Rg7 {[%clk 0:01:00]} 28. Qe8+ {[%clk 0:02:19]}  Rg8 {[%clk 0:01:00]} 29. Qe5+ {[%clk 0:02:19]}  Rg7 {[%clk 0:01:00]} 30. h5 {[%clk 0:02:20]}  c6 {[%clk 0:00:59]} 31. h6 {[%clk 0:02:19]}  a6 {[%clk 0:00:50]} 32. a3 {[%clk 0:02:19]}  a5 {[%clk 0:00:47]} 33. a4 {[%clk 0:02:19]}  f3 {[%clk 0:00:47]} 34. g3 {[%clk 0:02:18]}  Kg8 {[%clk 0:00:43]} 35. Qe8# {[%clk 0:02:18]} 1-0


[Site "https://www.chess.com"]

[Event "Titled Tuesday Blitz March 08 Early 2022"]
[White "Demchenko, Anton"]
[Black "Mirzoev, Azer"]
[WhiteFideId "4160258"]
[BlackFideId "13400304"]
[WhiteElo "2539"]
[BlackElo "2525"]
[Result "1/2-1/2"]
[Round "08"]
[TimeControl "180+1"]
[Date "2022.03.08"]
[WhiteClock "0:00:16"]
[BlackClock "0:00:16"]

1. e4 {[%clk 0:03:00]}  e5 {[%clk 0:02:59]} 2. Nf3 {[%clk 0:03:00]}  Nc6 {[%clk 0:02:59]} 3. Bc4 {[%clk 0:03:01]}  Bc5 {[%clk 0:02:57]} 4. d3 {[%clk 0:03:02]}  d6 {[%clk 0:02:56]} 5. c3 {[%clk 0:03:01]}  Bb6 {[%clk 0:02:56]} 6. O-O {[%clk 0:02:57]}  Nf6 {[%clk 0:02:55]} 7. Nbd2 {[%clk 0:02:56]}  O-O {[%clk 0:02:53]} 8. Bb3 {[%clk 0:02:55]}  Ne7 {[%clk 0:02:53]} 9. Nc4 {[%clk 0:02:55]}  Ng6 {[%clk 0:02:52]} 10. Re1 {[%clk 0:02:54]}  c6 {[%clk 0:02:46]} 11. Nxb6 {[%clk 0:02:54]}  axb6 {[%clk 0:02:46]} 12. d4 {[%clk 0:02:53]}  Qc7 {[%clk 0:02:42]} 13. h3 {[%clk 0:02:53]}  b5 {[%clk 0:02:40]} 14. Bg5 {[%clk 0:02:48]}  Qe7 {[%clk 0:02:35]} 15. Bc2 {[%clk 0:02:25]}  h6 {[%clk 0:02:35]} 16. Be3 {[%clk 0:02:25]}  Re8 {[%clk 0:02:34]} 17. Nd2 {[%clk 0:02:08]}  Qc7 {[%clk 0:02:29]} 18. Qf3 {[%clk 0:02:06]}  Nh7 {[%clk 0:02:27]} 19. Nf1 {[%clk 0:02:07]}  Be6 {[%clk 0:02:24]} 20. a3 {[%clk 0:02:05]}  Rad8 {[%clk 0:02:21]} 21. Ng3 {[%clk 0:02:05]}  Ng5 {[%clk 0:02:20]} 22. Qh5 {[%clk 0:02:04]}  Nf4 {[%clk 0:02:10]} 23. Bxf4 {[%clk 0:01:57]}  exf4 {[%clk 0:02:11]} 24. Nf1 {[%clk 0:01:19]}  Qe7 {[%clk 0:02:07]} 25. Nh2 {[%clk 0:01:06]}  Nh7 {[%clk 0:02:03]} 26. Nf3 {[%clk 0:01:01]}  Ng5 {[%clk 0:01:51]} 27. e5 {[%clk 0:00:49]}  Bd5 {[%clk 0:01:44]} 28. Nxg5 {[%clk 0:00:33]}  Qxg5 {[%clk 0:01:38]} 29. Qxg5 {[%clk 0:00:34]}  hxg5 {[%clk 0:01:38]} 30. exd6 {[%clk 0:00:35]}  Kf8 {[%clk 0:01:33]} 31. Rxe8+ {[%clk 0:00:24]}  Rxe8 {[%clk 0:01:33]} 32. Bd3 {[%clk 0:00:24]}  Rd8 {[%clk 0:01:31]} 33. a4 {[%clk 0:00:23]}  bxa4 {[%clk 0:01:31]} 34. Rxa4 {[%clk 0:00:24]}  Rxd6 {[%clk 0:01:31]} 35. Ra8+ {[%clk 0:00:23]}  Ke7 {[%clk 0:01:31]} 36. f3 {[%clk 0:00:24]}  b5 {[%clk 0:01:28]} 37. Bf5 {[%clk 0:00:23]}  g6 {[%clk 0:01:26]} 38. Be4 {[%clk 0:00:21]}  Bxe4 {[%clk 0:01:21]} 39. fxe4 {[%clk 0:00:20]}  Re6 {[%clk 0:01:19]} 40. Ra7+ {[%clk 0:00:19]}  Kf8 {[%clk 0:01:18]} 41. e5 {[%clk 0:00:20]}  f6 {[%clk 0:01:19]} 42. exf6 {[%clk 0:00:20]}  Rxf6 {[%clk 0:01:19]} 43. Kf2 {[%clk 0:00:20]}  Re6 {[%clk 0:01:20]} 44. Rd7 {[%clk 0:00:19]}  Ke8 {[%clk 0:01:19]} 45. Rc7 {[%clk 0:00:19]}  Kd8 {[%clk 0:01:18]} 46. Rg7 {[%clk 0:00:19]}  Ke8 {[%clk 0:01:17]} 47. Rh7 {[%clk 0:00:19]}  Kd8 {[%clk 0:01:08]} 48. Rf7 {[%clk 0:00:17]}  Ke8 {[%clk 0:01:08]} 49. Rb7 {[%clk 0:00:17]}  Kd8 {[%clk 0:01:05]} 50. d5 {[%clk 0:00:18]}  cxd5 {[%clk 0:01:05]} 51. Rxb5 {[%clk 0:00:18]}  Rd6 {[%clk 0:01:04]} 52. Ke2 {[%clk 0:00:18]}  Ke7 {[%clk 0:00:55]} 53. Kd3 {[%clk 0:00:16]}  Ke6 {[%clk 0:00:39]} 54. b4 {[%clk 0:00:16]}  Ra6 {[%clk 0:00:24]} 55. Ra5 {[%clk 0:00:17]}  Rc6 {[%clk 0:00:24]} 56. Ra2 {[%clk 0:00:17]}  Ke5 {[%clk 0:00:22]} 57. Re2+ {[%clk 0:00:17]}  Kf5 {[%clk 0:00:22]} 58. b5 {[%clk 0:00:17]}  Rc8 {[%clk 0:00:18]} 59. Kd4 {[%clk 0:00:15]}  Rc4+ {[%clk 0:00:16]} 60. Kxd5 {[%clk 0:00:15]}  Rxc3 {[%clk 0:00:16]} 61. Rb2 {[%clk 0:00:15]}  g4 {[%clk 0:00:14]} 62. hxg4+ {[%clk 0:00:10]}  Kxg4 {[%clk 0:00:14]} 63. b6 {[%clk 0:00:11]}  Rc8 {[%clk 0:00:15]} 64. b7 {[%clk 0:00:10]}  Rb8 {[%clk 0:00:15]} 65. Rb3 {[%clk 0:00:10]}  g5 {[%clk 0:00:13]} 66. Ke5 {[%clk 0:00:11]}  Re8+ {[%clk 0:00:12]} 67. Kf6 {[%clk 0:00:11]}  Rf8+ {[%clk 0:00:11]} 68. Kg7 {[%clk 0:00:10]}  Rb8 {[%clk 0:00:11]} 69. Kh7 {[%clk 0:00:10]}  Kh4 {[%clk 0:00:11]} 70. Kg6 {[%clk 0:00:11]}  g4 {[%clk 0:00:11]} 71. Kf5 {[%clk 0:00:11]}  f3 {[%clk 0:00:11]} 72. gxf3 {[%clk 0:00:05]}  gxf3 {[%clk 0:00:11]} 73. Ke4 {[%clk 0:00:03]}  f2 {[%clk 0:00:10]} 74. Rf3 {[%clk 0:00:03]}  Rxb7 {[%clk 0:00:10]} 75. Rxf2 {[%clk 0:00:04]}  Re7+ {[%clk 0:00:10]} 76. Kd5 {[%clk 0:00:04]}  Rd7+ {[%clk 0:00:11]} 77. Ke6 {[%clk 0:00:04]}  Rd1 {[%clk 0:00:11]} 78. Rf8 {[%clk 0:00:04]}  Kg3 {[%clk 0:00:11]} 79. Ke5 {[%clk 0:00:05]}  Kg2 {[%clk 0:00:11]} 80. Ke4 {[%clk 0:00:05]}  Re1+ {[%clk 0:00:12]} 81. Kd3 {[%clk 0:00:06]}  Rf1 {[%clk 0:00:12]} 82. Rg8+ {[%clk 0:00:06]}  Kf2 {[%clk 0:00:11]} 83. Rc8 {[%clk 0:00:07]}  Rd1+ {[%clk 0:00:11]} 84. Ke4 {[%clk 0:00:07]}  Re1+ {[%clk 0:00:11]} 85. Kf4 {[%clk 0:00:07]}  Re2 {[%clk 0:00:12]} 86. Rc3 {[%clk 0:00:08]}  Ra2 {[%clk 0:00:11]} 87. Rd3 {[%clk 0:00:07]}  Ra4+ {[%clk 0:00:11]} 88. Ke5 {[%clk 0:00:08]}  Ra5+ {[%clk 0:00:12]} 89. Kf6 {[%clk 0:00:09]}  Ra6+ {[%clk 0:00:12]} 90. Ke7 {[%clk 0:00:09]}  Ra7+ {[%clk 0:00:12]} 91. Kd6 {[%clk 0:00:10]}  Ra8 {[%clk 0:00:12]} 92. Rb3 {[%clk 0:00:09]}  Rd8+ {[%clk 0:00:12]} 93. Ke7 {[%clk 0:00:10]}  Rd1 {[%clk 0:00:12]} 94. Ke6 {[%clk 0:00:10]}  Re1+ {[%clk 0:00:12]} 95. Kf5 {[%clk 0:00:11]}  Re3 {[%clk 0:00:12]} 96. Rb4 {[%clk 0:00:11]}  Re2 {[%clk 0:00:13]} 97. Rc4 {[%clk 0:00:11]}  Rd2 {[%clk 0:00:13]} 98. Kf4 {[%clk 0:00:11]}  Ke2 {[%clk 0:00:13]} 99. Re4+ {[%clk 0:00:11]}  Kd3 {[%clk 0:00:13]} 100. Re6 {[%clk 0:00:12]}  Kc3 {[%clk 0:00:13]} 101. Rc6+ {[%clk 0:00:12]}  Kd3 {[%clk 0:00:12]} 102. Ke5 {[%clk 0:00:12]}  Re2+ {[%clk 0:00:12]} 103. Kd5 {[%clk 0:00:12]}  Rc2 {[%clk 0:00:13]} 104. Ra6 {[%clk 0:00:13]}  Rc3 {[%clk 0:00:13]} 105. Ra4 {[%clk 0:00:13]}  Rb3 {[%clk 0:00:13]} 106. Rh4 {[%clk 0:00:13]}  Rb8 {[%clk 0:00:13]} 107. Rh3+ {[%clk 0:00:13]}  Ke2 {[%clk 0:00:13]} 108. Kc4 {[%clk 0:00:13]}  Kf2 {[%clk 0:00:13]} 109. Rh7 {[%clk 0:00:12]}  Kg3 {[%clk 0:00:13]} 110. Rf7 {[%clk 0:00:12]}  Kg4 {[%clk 0:00:13]} 111. Kd4 {[%clk 0:00:13]}  Kg5 {[%clk 0:00:13]} 112. Ke3 {[%clk 0:00:12]}  Kg6 {[%clk 0:00:13]} 113. Rc7 {[%clk 0:00:12]}  Re8+ {[%clk 0:00:13]} 114. Kf4 {[%clk 0:00:12]}  Rf8+ {[%clk 0:00:14]} 115. Kg4 {[%clk 0:00:13]}  Kf6 {[%clk 0:00:14]} 116. Rc6+ {[%clk 0:00:13]}  Ke7 {[%clk 0:00:14]} 117. Kg5 {[%clk 0:00:14]}  Kd7 {[%clk 0:00:14]} 118. Ra6 {[%clk 0:00:14]}  Re8 {[%clk 0:00:15]} 119. Kf5 {[%clk 0:00:14]}  Rc8 {[%clk 0:00:15]} 120. Ke5 {[%clk 0:00:14]}  Rc5+ {[%clk 0:00:15]} 121. Kd4 {[%clk 0:00:15]}  Rc6 {[%clk 0:00:15]} 122. Ra5 {[%clk 0:00:15]}  Rd6+ {[%clk 0:00:15]} 123. Kc5 {[%clk 0:00:15]}  Rc6+ {[%clk 0:00:15]} 124. Kd5 {[%clk 0:00:15]}  Rd6+ {[%clk 0:00:16]} 125. Ke5 {[%clk 0:00:16]} 1/2-1/2


[Site "https://www.chess.com"]

[Event "Titled Tuesday Blitz March 08 Early 2022"]
[White "Dubov, Daniil"]
[Black "Beerdsen, Thomas"]
[WhiteFideId "24126055"]
[BlackFideId "1030108"]
[WhiteElo "2791"]
[BlackElo "2585"]
[Result "1-0"]
[Round "08"]
[TimeControl "180+1"]
[Date "2022.03.08"]
[WhiteClock "0:00:02"]
[BlackClock "0:00:04"]

1. d4 {[%clk 0:03:00]}  d5 {[%clk 0:02:59]} 2. Nf3 {[%clk 0:02:59]}  Nc6 {[%clk 0:03:00]} 3. Bf4 {[%clk 0:02:51]}  Bg4 {[%clk 0:03:00]} 4. Nbd2 {[%clk 0:02:48]}  e6 {[%clk 0:02:59]} 5. e3 {[%clk 0:02:47]}  Bd6 {[%clk 0:02:58]} 6. Bxd6 {[%clk 0:02:44]}  cxd6 {[%clk 0:02:57]} 7. Be2 {[%clk 0:02:43]}  Nf6 {[%clk 0:02:56]} 8. O-O {[%clk 0:02:44]}  O-O {[%clk 0:02:56]} 9. c4 {[%clk 0:02:43]}  Rc8 {[%clk 0:02:53]} 10. Rc1 {[%clk 0:02:42]}  h6 {[%clk 0:02:51]} 11. a3 {[%clk 0:02:35]}  a5 {[%clk 0:02:50]} 12. h3 {[%clk 0:02:30]}  Bh5 {[%clk 0:02:50]} 13. Qb3 {[%clk 0:02:30]}  Ne4 {[%clk 0:02:32]} 14. Rfd1 {[%clk 0:02:18]}  Nxd2 {[%clk 0:02:28]} 15. Rxd2 {[%clk 0:02:17]}  dxc4 {[%clk 0:02:29]} 16. Rxc4 {[%clk 0:02:15]}  Qd7 {[%clk 0:02:11]} 17. Rc3 {[%clk 0:01:36]}  Ne7 {[%clk 0:01:53]} 18. Ne5 {[%clk 0:01:13]}  dxe5 {[%clk 0:01:53]} 19. Bxh5 {[%clk 0:01:13]}  Nf5 {[%clk 0:01:32]} 20. d5 {[%clk 0:01:11]}  a4 {[%clk 0:01:21]} 21. Qc2 {[%clk 0:00:54]}  Rxc3 {[%clk 0:01:01]} 22. Qxc3 {[%clk 0:00:52]}  Nd6 {[%clk 0:00:37]} 23. Bf3 {[%clk 0:00:39]}  e4 {[%clk 0:00:25]} 24. Bg4 {[%clk 0:00:35]}  f5 {[%clk 0:00:19]} 25. Be2 {[%clk 0:00:35]}  Kh7 {[%clk 0:00:13]} 26. dxe6 {[%clk 0:00:28]}  Qxe6 {[%clk 0:00:14]} 27. Qb4 {[%clk 0:00:27]}  Rf6 {[%clk 0:00:11]} 28. Qxa4 {[%clk 0:00:27]}  f4 {[%clk 0:00:11]} 29. Bg4 {[%clk 0:00:24]}  Qe5 {[%clk 0:00:08]} 30. Qd4 {[%clk 0:00:23]}  Qg5 {[%clk 0:00:08]} 31. exf4 {[%clk 0:00:15]}  Qxf4 {[%clk 0:00:09]} 32. Qe3 {[%clk 0:00:15]}  Qe5 {[%clk 0:00:10]} 33. Qd4 {[%clk 0:00:14]}  Qf4 {[%clk 0:00:10]} 34. Qe3 {[%clk 0:00:14]}  Qe5 {[%clk 0:00:11]} 35. Qc3 {[%clk 0:00:11]}  Qf4 {[%clk 0:00:07]} 36. g3 {[%clk 0:00:11]}  Qg5 {[%clk 0:00:07]} 37. Qe3 {[%clk 0:00:11]}  Qe5 {[%clk 0:00:06]} 38. Qd4 {[%clk 0:00:11]}  Qg5 {[%clk 0:00:07]} 39. Qd5 {[%clk 0:00:10]}  Qg6 {[%clk 0:00:06]} 40. Qh5 {[%clk 0:00:09]}  Qxh5 {[%clk 0:00:03]} 41. Bxh5 {[%clk 0:00:09]}  Nc4 {[%clk 0:00:04]} 42. Rd4 {[%clk 0:00:08]}  Nxb2 {[%clk 0:00:04]} 43. Rxe4 {[%clk 0:00:09]}  Nd3 {[%clk 0:00:04]} 44. f4 {[%clk 0:00:06]}  Ra6 {[%clk 0:00:04]} 45. f5 {[%clk 0:00:04]}  g5 {[%clk 0:00:03]} 46. Re7+ {[%clk 0:00:02]}  Kg8 {[%clk 0:00:03]} 47. Rxb7 {[%clk 0:00:03]}  Rxa3 {[%clk 0:00:02]} 48. f6 {[%clk 0:00:03]}  Ne5 {[%clk 0:00:03]} 49. Rb8+ {[%clk 0:00:03]}  Kh7 {[%clk 0:00:03]} 50. f7 {[%clk 0:00:04]}  Nxf7 {[%clk 0:00:02]} 51. Bxf7 {[%clk 0:00:03]}  Rxg3+ {[%clk 0:00:03]} 52. Kh2 {[%clk 0:00:03]}  Rc3 {[%clk 0:00:04]} 53. Bd5 {[%clk 0:00:03]}  Kg6 {[%clk 0:00:04]} 54. Rb6+ {[%clk 0:00:02]}  Kh5 {[%clk 0:00:04]} 55. Bf7+ {[%clk 0:00:02]}  Kh4 {[%clk 0:00:04]} 56. Rxh6# {[%clk 0:00:02]} 1-0


[Site "https://www.chess.com"]

[Event "Titled Tuesday Blitz March 08 Early 2022"]
[White "Erigaisi Arjun"]
[Black "Matlakov, Maxim"]
[WhiteFideId "35009192"]
[BlackFideId "4168003"]
[WhiteElo "2745"]
[BlackElo "2669"]
[Result "1-0"]
[Round "08"]
[TimeControl "180+1"]
[Date "2022.03.08"]
[WhiteClock "0:00:21"]
[BlackClock "0:00:15"]

1. b3 {[%clk 0:02:58]}  d5 {[%clk 0:02:58]} 2. Bb2 {[%clk 0:02:58]}  Bf5 {[%clk 0:02:57]} 3. Nf3 {[%clk 0:02:58]}  e6 {[%clk 0:02:57]} 4. g3 {[%clk 0:02:59]}  Nf6 {[%clk 0:02:57]} 5. Bg2 {[%clk 0:03:00]}  h6 {[%clk 0:02:57]} 6. O-O {[%clk 0:03:00]}  Be7 {[%clk 0:02:57]} 7. c4 {[%clk 0:03:01]}  O-O {[%clk 0:02:57]} 8. d3 {[%clk 0:03:01]}  c6 {[%clk 0:02:56]} 9. Nbd2 {[%clk 0:03:02]}  Bh7 {[%clk 0:02:56]} 10. a3 {[%clk 0:03:02]}  a5 {[%clk 0:02:55]} 11. Qc1 {[%clk 0:03:02]}  Nbd7 {[%clk 0:02:55]} 12. Qc3 {[%clk 0:03:03]}  Qb6 {[%clk 0:02:52]} 13. Ne5 {[%clk 0:02:52]}  Nxe5 {[%clk 0:02:49]} 14. Qxe5 {[%clk 0:02:53]}  Rfd8 {[%clk 0:02:34]} 15. Bd4 {[%clk 0:02:51]}  c5 {[%clk 0:02:23]} 16. Bb2 {[%clk 0:02:46]}  d4 {[%clk 0:02:23]} 17. Qf4 {[%clk 0:02:44]}  e5 {[%clk 0:02:05]} 18. Qf3 {[%clk 0:02:40]}  Rd7 {[%clk 0:02:03]} 19. Rfb1 {[%clk 0:02:38]}  Bd6 {[%clk 0:02:02]} 20. Bc1 {[%clk 0:02:38]}  Re8 {[%clk 0:02:01]} 21. Ne4 {[%clk 0:02:36]}  Nxe4 {[%clk 0:01:56]} 22. dxe4 {[%clk 0:02:37]}  Rdd8 {[%clk 0:01:54]} 23. Qd3 {[%clk 0:02:37]}  Ra8 {[%clk 0:01:53]} 24. Bd2 {[%clk 0:02:37]}  Qc6 {[%clk 0:01:49]} 25. Rb2 {[%clk 0:02:35]}  b6 {[%clk 0:01:49]} 26. Rab1 {[%clk 0:02:34]}  f5 {[%clk 0:01:47]} 27. exf5 {[%clk 0:02:24]}  e4 {[%clk 0:01:47]} 28. g4 {[%clk 0:02:24]}  Rad8 {[%clk 0:01:29]} 29. Qh3 {[%clk 0:02:13]}  Qc7 {[%clk 0:01:27]} 30. g5 {[%clk 0:02:10]}  hxg5 {[%clk 0:01:04]} 31. Bxg5 {[%clk 0:02:11]}  Be7 {[%clk 0:01:02]} 32. Bxe7 {[%clk 0:01:53]}  Qxe7 {[%clk 0:01:03]} 33. b4 {[%clk 0:01:36]}  axb4 {[%clk 0:01:02]} 34. axb4 {[%clk 0:01:37]}  Qg5 {[%clk 0:01:01]} 35. bxc5 {[%clk 0:01:35]}  bxc5 {[%clk 0:01:02]} 36. Qg3 {[%clk 0:01:17]}  Qxg3 {[%clk 0:00:44]} 37. hxg3 {[%clk 0:01:17]}  Bxf5 {[%clk 0:00:45]} 38. Rd1 {[%clk 0:01:14]}  e3 {[%clk 0:00:38]} 39. Bd5+ {[%clk 0:01:08]}  Be6 {[%clk 0:00:31]} 40. Bxe6+ {[%clk 0:01:01]}  Rxe6 {[%clk 0:00:32]} 41. f4 {[%clk 0:00:59]}  Kf7 {[%clk 0:00:24]} 42. Kg2 {[%clk 0:00:57]}  Kf6 {[%clk 0:00:23]} 43. Rb5 {[%clk 0:00:53]}  Rc6 {[%clk 0:00:22]} 44. Kf3 {[%clk 0:00:53]}  g5 {[%clk 0:00:22]} 45. Rh1 {[%clk 0:00:51]}  Kg6 {[%clk 0:00:20]} 46. Ra1 {[%clk 0:00:48]}  gxf4 {[%clk 0:00:20]} 47. gxf4 {[%clk 0:00:49]}  Kf6 {[%clk 0:00:17]} 48. Raa5 {[%clk 0:00:49]}  Rdc8 {[%clk 0:00:17]} 49. Ke4 {[%clk 0:00:47]}  R6c7 {[%clk 0:00:16]} 50. Rb6+ {[%clk 0:00:38]}  Kg7 {[%clk 0:00:16]} 51. Raa6 {[%clk 0:00:33]}  Re7+ {[%clk 0:00:16]} 52. Kf3 {[%clk 0:00:32]}  Rd8 {[%clk 0:00:16]} 53. Rg6+ {[%clk 0:00:32]}  Kf7 {[%clk 0:00:16]} 54. Raf6+ {[%clk 0:00:29]}  Ke8 {[%clk 0:00:16]} 55. Rc6 {[%clk 0:00:25]}  d3 {[%clk 0:00:16]} 56. Rg8+ {[%clk 0:00:24]}  Kd7 {[%clk 0:00:16]} 57. Rxd8+ {[%clk 0:00:25]}  Kxd8 {[%clk 0:00:14]} 58. Rd6+ {[%clk 0:00:26]}  Kc7 {[%clk 0:00:14]} 59. Rxd3 {[%clk 0:00:26]}  Rh7 {[%clk 0:00:14]} 60. Kxe3 {[%clk 0:00:25]}  Kc6 {[%clk 0:00:14]} 61. Ke4 {[%clk 0:00:24]}  Rh1 {[%clk 0:00:14]} 62. Rc3 {[%clk 0:00:21]}  Re1 {[%clk 0:00:14]} 63. e3 {[%clk 0:00:21]}  Kb6 {[%clk 0:00:14]} 64. Kd5 {[%clk 0:00:21]}  Rd1+ {[%clk 0:00:14]} 65. Ke6 {[%clk 0:00:21]}  Ka5 {[%clk 0:00:15]} 66. Rb3 {[%clk 0:00:21]}  Rc1 {[%clk 0:00:15]} 67. Rb5+ {[%clk 0:00:21]} 1-0


[Site "https://www.chess.com"]